bitfinex-derivatives/quotes_BTCF0:USTF0_20210708
["timestamp","ask_amount","ask_price","bid_price","bid_amount"]
[1625722299712,2.61560917,33206.0,33205.0,0.00397424]
[1625722299863,1.2206857,33206.0,33205.0,0.00397424]
[1625722300162,1.2776857,33206.0,33205.0,0.00397424]
[1625722300465,2.67238731,33206.0,33205.0,0.00397424]
[1625722300915,1.2776857,33206.0,33205.0,0.00397424]
[1625722301216,1.2776857,33206.0,33205.0,0.09387424]
[1625722301439,2.67245708,33206.0,33205.0,0.09387424]
[1625722301665,1.2776857,33206.0,33205.0,0.09387424]
[1625722301816,1.2776857,33206.0,33205.0,0.00397424]
[1625722301966,2.67227081,33206.0,33205.0,0.00397424]
[1625722302567,1.2206857,33206.0,33205.0,0.00397424]
[1625722302868,2.61570507,33206.0,33205.0,0.00397424]
[1625722303318,1.2206857,33206.0,33205.0,0.00397424]
[1625722304520,2.61531213,33206.0,33205.0,0.00397424]
[1625722304669,1.2206857,33206.0,33205.0,0.00397424]
[1625722304896,2.61535349,33206.0,33205.0,0.00397424]
[1625722305569,1.2206857,33206.0,33205.0,0.00397424]
[1625722306020,1.2776857,33206.0,33205.0,0.00397424]
[1625722306547,2.67207907,33206.0,33205.0,0.00397424]
[1625722307674,1.2776857,33206.0,33205.0,0.00397424]
[1625722308953,2.67226002,33206.0,33205.0,0.00397424]
[1625722309251,2.61526002,33206.0,33205.0,0.09507424]
[1625722309552,1.37137924,33207.0,33205.0,0.09507424]
[1625722310001,1.37137924,33207.0,33206.0,0.00397521]
[1625722310377,1.37137924,33207.0,33206.0,0.24455065]
[1625722311203,1.37137924,33207.0,33206.0,1.24455065]
[1625722311655,1.37137924,33207.0,33206.0,0.24455065]
[1625722311804,0.15057484,33207.0,33206.0,0.24455065]
[1625722312556,1.37143365,33207.0,33206.0,0.24455065]
[1625722313157,1.19755686,33207.0,33206.0,1.24455065]
[1625722313607,0.15057484,33207.0,33206.0,0.24455065]
[1625722313909,0.15057484,33207.0,33206.0,1.24455065]
[1625722314508,0.15057484,33207.0,33206.0,0.24455065]
[1625722314734,0.15057484,33207.0,33206.0,1.24455065]
[1625722315034,0.15057484,33207.0,33206.0,0.24455065]
[1625722315185,1.19798382,33207.0,33206.0,0.24455065]
[1625722315484,0.15057484,33207.0,33206.0,0.24455065]
[1625722315785,1.19793533,33207.0,33206.0,0.24455065]
[1625722319613,2.41904927,33207.0,33206.0,0.24455065]
[1625722319767,2.47604927,33207.0,33206.0,0.24455065]
[1625722320891,2.70192927,33207.0,33206.0,0.24455065]
[1625722322168,4.09728567,33207.0,33206.0,0.24455065]
[1625722324047,5.66579485,33207.0,33206.0,0.24455065]
[1625722337728,6.36495803,33207.0,33206.0,0.24455065]
[1625722349890,6.38066145,33207.0,33206.0,0.24455065]
[1625722357250,6.36495803,33207.0,33206.0,0.24455065]
[1625722364615,6.30795803,33207.0,33206.0,1.24455065]
[1625722364760,6.08207803,33207.0,33206.0,1.24455065]
[1625722365058,4.36299401,33207.0,33206.0,1.25728678]
[1625722365210,2.96763761,33207.0,33206.0,2.67370502]
[1625722365510,2.89263761,33207.0,33206.0,2.67370502]
[1625722366264,2.88433761,33207.0,33206.0,2.67370502]
[1625722366711,1.64662367,33207.0,33206.0,2.67370502]
[1625722367010,2.87368956,33207.0,33206.0,2.67370502]
[1625722367912,1.64662367,33207.0,33206.0,2.67370502]
[1625722368062,1.48002367,33207.0,33206.0,2.67370502]
[1625722368739,1.48002367,33207.0,33206.0,3.91250891]
[1625722369264,1.48002367,33207.0,33206.0,3.89977278]
[1625722369567,1.48002367,33207.0,33206.0,3.91250239]
[1625722370016,1.40602367,33207.0,33206.0,3.41250239]
[1625722370167,1.14122367,33207.0,33206.0,2.1736985]
[1625722370318,0.92792367,33207.0,33206.0,3.1736985]
[1625722370841,0.88902367,33207.0,33206.0,3.1736985]
[1625722371216,0.81502367,33207.0,33206.0,3.1736985]
[1625722371367,0.81502367,33207.0,33206.0,3.16096889]
[1625722371519,0.80502367,33207.0,33206.0,3.17369369]
[1625722371668,0.77702367,33207.0,33206.0,3.17369369]
[1625722372269,0.77702367,33207.0,33206.0,2.17369369]
[1625722372418,0.77702367,33207.0,33206.0,3.17369369]
[1625722372718,0.69916318,33207.0,33206.0,3.17369369]
[1625722372945,1.21809148,33207.0,33206.0,3.17369369]
[1625722373919,1.14309148,33207.0,33206.0,3.17369369]
[1625722374148,1.14309148,33207.0,33206.0,1.75727545]
[1625722374820,1.14309148,33207.0,33206.0,3.17170209]
[1625722374970,1.09099148,33207.0,33206.0,3.17170209]
[1625722375122,0.98869148,33207.0,33206.0,3.17170209]
[1625722375271,0.96449148,33207.0,33206.0,3.17170209]
[1625722376171,0.95599148,33207.0,33206.0,3.17170209]
[1625722376320,0.91159148,33207.0,33206.0,3.17170209]
[1625722377298,0.83659148,33207.0,33206.0,3.17170209]
[1625722378046,0.83259148,33207.0,33206.0,3.17170209]
[1625722378196,0.78829148,33207.0,33206.0,3.17170209]
[1625722378346,0.72859148,33207.0,33206.0,3.17170209]
[1625722378496,0.5258283,33207.0,33206.0,1.75727545]
[1625722379771,0.5258283,33207.0,33206.0,0.75727545]
[1625722380221,0.5258283,33207.0,33206.0,1.75727545]
[1625722380522,0.7982583,33207.0,33206.0,4.94677545]
[1625722381125,0.7982583,33207.0,33206.0,4.93405065]
[1625722381274,0.7982583,33207.0,33206.0,0.24455065]
[1625722381275,0.8552583,33207.0,33206.0,0.24455065]
[1625722381431,2.0829619,33207.0,33206.0,0.24455065]
[1625722381576,2.0829619,33207.0,33206.0,0.24057544]
[1625722381725,3.48537423,33207.0,33206.0,0.24057544]
[1625722381874,7.13847423,33207.0,33206.0,0.24454184]
[1625722382325,8.71390316,33207.0,33206.0,0.24454184]
[1625722382627,8.9544786,33207.0,33206.0,0.24454184]
[1625722382782,10.7036421,33207.0,33206.0,0.24454184]
[1625722383376,7.54769787,33207.0,33206.0,0.24454184]
[1625722383677,10.69561458,33207.0,33204.0,0.24057544]
[1625722383829,4.72045037,33205.0,33204.0,0.24057544]
[1625722383979,4.77745037,33205.0,33204.0,0.24057544]
[1625722384129,4.77745037,33205.0,33202.0,0.001]
[1625722384278,1.63042519,33205.0,33204.0,0.00396348]
[1625722384430,1.80478073,33205.0,33197.0,0.002]
[1625722384580,6.5230196,33205.0,33197.0,0.002]
[1625722384732,0.48115088,33198.0,33197.0,0.002]
[1625722384878,3.86871382,33198.0,33197.0,0.002]
[1625722385030,3.92571382,33198.0,33197.0,0.002]
[1625722385180,8.02461382,33198.0,33197.0,0.00595947]
[1625722385329,8.02461382,33198.0,33197.0,0.002]
[1625722385630,8.02461382,33198.0,33197.0,0.00595958]
[1625722385930,8.02461382,33198.0,33197.0,0.002]
[1625722386229,8.02461382,33198.0,33197.0,0.00595918]
[1625722395242,8.02461382,33198.0,33197.0,0.00395918]
[1625722395545,8.02461382,33198.0,33195.0,0.00396515]
[1625722395846,4.87924088,33198.0,33197.0,0.00396515]
[1625722396147,8.01166684,33198.0,33196.0,0.00396515]
[1625722396299,3.1324347,33197.0,33194.0,0.24057544]
[1625722396597,1.74011103,33195.0,33194.0,0.24057544]
[1625722396897,1.79711103,33195.0,33194.0,0.24453647]
[1625722399001,1.79711103,33195.0,33194.0,0.24057544]
[1625722399150,1.79711103,33195.0,33194.0,0.24453663]
[1625722399902,1.79711103,33195.0,33194.0,0.24057544]
[1625722400053,1.79711103,33195.0,33194.0,0.24453666]
[1625722402190,3.18817148,33195.0,33194.0,0.24453666]
[1625722402458,4.23104459,33195.0,33194.0,0.24453666]
[1625722402614,2.83998414,33195.0,33194.0,0.24453666]
[1625722403137,4.23009387,33195.0,33194.0,0.24453666]
[1625722403735,2.83998414,33195.0,33194.0,0.24453666]
[1625722406511,6.54688414,33195.0,33194.0,0.24453666]
[1625722407713,7.9360788,33195.0,33194.0,0.24453666]
[1625722408856,6.54688414,33195.0,33194.0,0.24453666]
[1625722410717,5.32887601,33195.0,33194.0,0.24453666]
[1625722410869,4.80677311,33195.0,33194.0,0.24453666]
[1625722411016,5.32775099,33195.0,33194.0,0.24453666]
[1625722411318,5.32775099,33195.0,33194.0,0.24057544]
[1625722411467,5.32775099,33195.0,33194.0,0.24453204]
[1625722413194,5.41855099,33195.0,33194.0,0.24453204]
[1625722413344,5.32775099,33195.0,33194.0,0.24453204]
[1625722414530,6.54212241,33195.0,33194.0,0.24453204]
[1625722414795,7.92853222,33195.0,33194.0,0.0039566]
[1625722414928,8.16910766,33195.0,33194.0,0.0039566]
[1625722415238,9.72798898,33195.0,33194.0,0.0039566]
[1625722415378,9.72798898,33195.0,33191.0,0.00395749]
[1625722415669,4.00447544,33195.0,33194.0,0.00395749]
[1625722415844,4.00447544,33195.0,33192.0,0.00395749]
[1625722415970,9.6625152,33195.0,33192.0,0.00395749]
[1625722416122,0.07275423,33194.0,33176.0,0.53347544]
[1625722416419,0.057,33194.0,33181.0,0.00395409]
[1625722416569,1.03766816,33182.0,33181.0,0.00395409]
[1625722416719,5.47013816,33182.0,33179.0,0.02619831]
[1625722416869,5.47013816,33182.0,33170.0,0.005]
[1625722417019,0.96230176,33180.0,33171.0,0.24057544]
[1625722417169,0.057,33179.0,33176.0,0.00395499]
[1625722417319,1.03514392,33178.0,33176.0,0.00395499]
[1625722417479,0.057,33177.0,33176.0,0.00395499]
[1625722417770,1.61129302,33177.0,33176.0,0.00395499]
[1625722418147,2.82258583,33177.0,33176.0,0.00395499]
[1625722419648,2.82258583,33177.0,33175.0,0.00395129]
[1625722419950,2.82258583,33177.0,33176.0,0.00395129]
[1625722420100,1.26829281,33177.0,33176.0,0.00395129]
[1625722420400,2.8331262,33177.0,33175.0,0.00395501]
[1625722420701,1.56510218,33176.0,33175.0,0.00395501]
[1625722420851,1.62210218,33176.0,33175.0,0.00395501]
[1625722421000,1.86267762,33176.0,33175.0,0.00395501]
[1625722422352,0.81933412,33176.0,33175.0,0.00395501]
[1625722422842,0.76233412,33176.0,33175.0,0.00395501]
[1625722422959,0.76233412,33176.0,33175.0,0.24453045]
[1625722423121,0.24057544,33176.0,33175.0,0.24453045]
[1625722423552,0.29757544,33176.0,33175.0,0.24453045]
[1625722423856,0.22337544,33176.0,33175.0,0.24453045]
[1625722424680,0.21767544,33176.0,33175.0,0.24453045]
[1625722431736,0.21767544,33176.0,33175.0,0.24057544]
[1625722432266,0.21767544,33176.0,33175.0,0.24453125]
[1625722432413,0.21767544,33176.0,33175.0,0.24057544]
[1625722432714,0.21767544,33176.0,33175.0,0.2445312]
[1625722436770,0.73918066,33176.0,33175.0,0.2445312]
[1625722438268,0.39156842,33176.0,33175.0,0.2445312]
[1625722438418,0.73931018,33176.0,33175.0,0.2445312]
[1625722438570,0.73972725,33176.0,33175.0,0.2445312]
[1625722439096,1.08775757,33176.0,33175.0,0.2445312]
[1625722440373,0.73972725,33176.0,33175.0,0.2445312]
[1625722440674,1.43550806,33176.0,33175.0,0.2445312]
[1625722443004,1.27483262,33176.0,33175.0,0.2445312]
[1625722443152,1.21783262,33176.0,33175.0,0.83798664]
[1625722443303,0.52190039,33176.0,33175.0,0.83798664]
[1625722443604,0.52318664,33177.0,33175.0,0.83798664]
[1625722443754,0.52318664,33177.0,33176.0,0.089]
[1625722443906,0.52318664,33177.0,33176.0,0.09295394]
[1625722446385,0.52218664,33177.0,33176.0,0.09295394]
[1625722448262,0.52218664,33177.0,33176.0,0.10182535]
[1625722448561,0.52218664,33177.0,33176.0,0.01282535]
[1625722448862,0.52218664,33177.0,33176.0,0.00395394]
[1625722449013,0.87155296,33177.0,33176.0,0.00395394]
[1625722449164,0.52348652,33177.0,33176.0,0.00395394]
[1625722449463,0.52378553,33177.0,33176.0,0.00395394]
[1625722449614,0.52378553,33177.0,33176.0,0.09355394]
[1625722450515,0.52378553,33177.0,33176.0,0.00395394]
[1625722450741,0.52378553,33177.0,33176.0,0.01282536]
[1625722451416,0.87261617,33177.0,33176.0,0.01282536]
[1625722451565,0.87261617,33177.0,33176.0,0.09375394]
[1625722451942,0.52348398,33177.0,33176.0,0.09375394]
[1625722453292,1.22153568,33177.0,33176.0,0.09375394]
[1625722453592,0.52348398,33177.0,33176.0,0.00395394]
[1625722454870,1.22152499,33177.0,33176.0,0.00395394]
[1625722457124,2.27021077,33177.0,33176.0,0.00395394]
[1625722458399,2.27021077,33177.0,33176.0,0.09455394]
[1625722458550,2.27021077,33177.0,33176.0,0.00395394]
[1625722459603,2.27021077,33177.0,33176.0,0.10332545]
[1625722459753,1.22152499,33177.0,33176.0,0.10332545]
[1625722461553,1.22152499,33177.0,33176.0,0.09445394]
[1625722461853,1.22152499,33177.0,33176.0,0.10332534]
[1625722462682,2.271685,33177.0,33176.0,0.10332534]
[1625722462831,2.271685,33177.0,33176.0,0.09445394]
[1625722464934,3.49723409,33177.0,33176.0,3.85875394]
[1625722467639,3.55423409,33177.0,33176.0,3.85875394]
[1625722468169,4.95579677,33177.0,33176.0,3.85875394]
[1625722468315,4.95579677,33177.0,33176.0,0.09445394]
[1625722468464,4.95579677,33177.0,33176.0,0.00395394]
[1625722469215,5.19637221,33177.0,33176.0,0.00395394]
[1625722469666,5.19637221,33177.0,33176.0,5.20145394]
[1625722474322,6.77956226,33177.0,33176.0,5.20145394]
[1625722475222,6.77956226,33177.0,33176.0,0.00395394]
[1625722478900,8.53901103,33177.0,33176.0,0.00395394]
[1625722479199,8.53901103,33177.0,33173.0,0.00394573]
[1625722479350,6.74939899,33174.0,33173.0,0.00394573]
[1625722479500,7.03116899,33174.0,33173.0,0.00394573]
[1625722479800,7.03116899,33174.0,33172.0,0.00394577]
[1625722479951,3.8388,33173.0,33172.0,0.00394577]
[1625722480100,3.8388,33173.0,33171.0,0.24157544]
[1625722480101,10.40583159,33173.0,33171.0,0.24157544]
[1625722480251,10.40583159,33173.0,33172.0,0.00394576]
[1625722480401,3.8958,33173.0,33172.0,0.00394576]
[1625722480549,10.40609508,33173.0,33172.0,0.00394576]
[1625722495046,10.40609508,33173.0,33172.0,0.00394685]
[1625722495351,3.8958,33173.0,33172.0,0.00394685]
[1625722495647,10.412425,33173.0,33172.0,0.00394685]
[1625722509691,10.677555,33173.0,33172.0,0.00394685]
[1625722510143,12.43715474,33173.0,33170.0,0.00394738]
[1625722510440,6.51088199,33171.0,33169.0,0.01]
[1625722510591,6.50970852,33170.0,33169.0,0.01]
[1625722510740,6.56670852,33170.0,33169.0,0.01]
[1625722510890,6.56670852,33170.0,33169.0,0.01394751]
[1625722511569,6.80728396,33170.0,33169.0,0.01394751]
[1625722517501,6.80728396,33170.0,33169.0,0.10434751]
[1625722517804,11.67908396,33170.0,33169.0,0.10434751]
[1625722518251,11.67908396,33170.0,33169.0,0.01394751]
[1625722519303,11.67908396,33170.0,33169.0,0.10554751]
[1625722519453,11.67908396,33170.0,33169.0,0.00394751]
[1625722519902,11.67908396,33170.0,33166.0,0.00394781]
[1625722520216,6.51052683,33167.0,33166.0,0.00394781]
[1625722520354,6.56752683,33167.0,33166.0,0.00394781]
[1625722521553,6.80810227,33167.0,33166.0,0.00394781]
[1625722525464,6.80810227,33167.0,33165.0,0.24057544]
[1625722525615,6.50450446,33166.0,33165.0,0.24057544]
[1625722525763,6.76073446,33166.0,33165.0,0.24057544]
[1625722525914,6.81773446,33166.0,33165.0,0.24057544]
[1625722526064,6.81773446,33166.0,33165.0,0.24452302]
[1625722528168,10.98063446,33166.0,33165.0,0.24452302]
[1625722531468,10.98063446,33166.0,33165.0,0.00394758]
[1625722531620,11.2212099,33166.0,33165.0,0.00394758]
[1625722532070,12.97793658,33166.0,33162.0,0.00394696]
[1625722532220,12.97793658,33166.0,33165.0,0.00394721]
[1625722532373,4.71670544,33166.0,33165.0,0.00394721]
[1625722532520,12.9706063,33166.0,33162.0,0.00394736]
[1625722532819,6.4979256,33163.0,33162.0,0.00394736]
[1625722533121,6.5549256,33163.0,33162.0,0.00394736]
[1625722533572,6.79550104,33163.0,33162.0,0.00394736]
[1625722539052,6.79550104,33163.0,33159.0,0.00395381]
[1625722539354,0.29757544,33163.0,33162.0,0.00395394]
[1625722539504,0.29757544,33163.0,33160.0,0.00395394]
[1625722539653,0.24057544,33161.0,33160.0,0.00395394]
[1625722539804,0.24057544,33161.0,33159.0,0.00395383]
[1625722539953,6.79194991,33161.0,33159.0,0.00395383]
[1625722540104,6.49422341,33160.0,33158.0,0.00395385]
[1625722540253,5.3139,33159.0,33158.0,0.00395385]
[1625722540404,12.14816584,33159.0,33157.0,0.24157544]
[1625722540706,7.23370241,33159.0,33158.0,0.00395228]
[1625722540853,12.14817786,33159.0,33158.0,0.00395228]
[1625722541003,12.20517786,33159.0,33158.0,0.00395228]
[1625722541154,12.20517786,33159.0,33154.0,0.34]
[1625722541314,2.27969249,33155.0,33154.0,0.34]
[1625722541460,4.96685067,33155.0,33154.0,0.34]
[1625722541604,7.26522139,33155.0,33154.0,0.34]
[1625722541754,7.26522139,33155.0,33154.0,0.34394903]
[1625722542879,7.26522139,33155.0,33154.0,0.21764903]
[1625722543932,7.26522139,33155.0,33154.0,0.2137]
[1625722544455,7.26522139,33155.0,33152.0,0.002]
[1625722544754,7.26522139,33155.0,33153.0,0.00394985]
[1625722545057,6.46746318,33154.0,33153.0,0.00394985]
[1625722545356,6.52446318,33154.0,33153.0,0.00394985]
[1625722547157,6.52446318,33154.0,33152.0,0.002]
[1625722547307,0.057,33154.0,33152.0,0.002]
[1625722547461,6.45299695,33153.0,33152.0,0.002]
[1625722547609,6.50999695,33153.0,33152.0,0.002]
[1625722547758,6.75057239,33153.0,33152.0,0.002]
[1625722548360,6.75057239,33153.0,33149.0,0.001]
[1625722548659,4.88282026,33150.0,33149.0,0.001]
[1625722548810,5.14475026,33150.0,33149.0,0.001]
[1625722548961,5.20175026,33150.0,33149.0,0.00494907]
[1625722549562,4.49753,33150.0,33149.0,0.00494907]
[1625722549712,4.73810544,33150.0,33149.0,0.00494907]
[1625722549860,9.61830434,33150.0,33149.0,0.00494907]
[1625722550916,9.61830434,33150.0,33149.0,0.001]
[1625722553317,9.61830434,33150.0,33149.0,0.00495158]
[1625722553468,9.61830434,33150.0,33149.0,0.001]
[1625722553619,8.22403648,33150.0,33149.0,0.001]
[1625722553769,8.22403648,33150.0,33149.0,0.0049515]
[1625722554069,8.16703648,33150.0,33149.0,0.0049515]
[1625722554523,8.22403648,33150.0,33149.0,0.0049515]
[1625722555271,9.61423553,33150.0,33149.0,0.0049515]
[1625722555421,9.61423553,33150.0,33149.0,0.001]
[1625722555721,9.61423553,33150.0,33149.0,0.0049516]
[1625722556027,9.61423553,33150.0,33149.0,0.001]
[1625722556174,9.61423553,33150.0,33149.0,0.00495163]
[1625722557299,9.61423553,33150.0,33149.0,0.00395163]
[1625722557600,9.61423553,33150.0,33146.0,0.24057544]
[1625722557601,9.61423553,33150.0,33147.0,0.00395163]
[1625722557749,2.49919888,33148.0,33147.0,0.00395163]
[1625722557899,2.55619888,33148.0,33146.0,0.24057544]
[1625722558199,2.55619888,33148.0,33147.0,0.00395155]
[1625722558350,0.29757544,33148.0,33147.0,0.00395155]
[1625722558500,2.55577967,33148.0,33147.0,0.00395155]
[1625722558951,3.77153371,33148.0,33147.0,0.00395155]
[1625722560229,2.55577967,33148.0,33147.0,0.00395155]
[1625722561957,2.49877967,33148.0,33147.0,0.00395155]
[1625722562106,2.49877967,33148.0,33147.0,0.27619155]
[1625722562410,0.26190781,33149.0,33147.0,0.27619155]
[1625722562558,0.08739016,33150.0,33148.0,0.0907]
[1625722562858,0.61204741,33151.0,33149.0,0.00395167]
[1625722563158,0.61204741,33151.0,33148.0,0.00395169]
[1625722563460,0.61204741,33151.0,33150.0,0.00395164]
[1625722563608,0.61204741,33151.0,33147.0,0.27224]
[1625722563609,0.61204741,33151.0,33149.0,0.00395171]
[1625722563759,0.26301007,33151.0,33150.0,0.48115088]
[1625722563908,0.26301007,33151.0,33150.0,0.57450251]
[1625722564509,0.08840418,33151.0,33150.0,0.57450251]
[1625722565262,0.001,33151.0,33150.0,0.57450251]
[1625722565564,0.001,33151.0,33150.0,0.48510251]
[1625722566016,0.08845744,33151.0,33150.0,0.48510251]
[1625722566466,0.08745744,33151.0,33150.0,0.79202251]
[1625722566766,0.52382549,33152.0,33150.0,0.79202251]
[1625722566767,0.26219697,33152.0,33150.0,0.79202251]
[1625722566915,0.61167096,33152.0,33150.0,0.79202251]
[1625722567215,0.61167096,33152.0,33151.0,0.00395145]
[1625722567216,0.52417394,33152.0,33151.0,0.00395145]
[1625722567518,0.61169341,33152.0,33151.0,0.00395145]
[1625722569469,0.52417394,33152.0,33151.0,0.00395145]
[1625722570073,0.52431713,33152.0,33151.0,0.00395145]
[1625722570521,2.2713526,33152.0,33151.0,0.00395145]
[1625722572709,2.5244326,33152.0,33151.0,0.00395145]
[1625722572854,2.5244326,33152.0,33150.0,0.48115088]
[1625722573000,1.2237454,33151.0,33150.0,0.48115088]
[1625722573224,0.25308,33152.0,33150.0,0.48115088]
[1625722573375,0.25308,33152.0,33150.0,0.48509802]
[1625722573527,1.30195004,33152.0,33150.0,0.48509802]
[1625722573676,1.30195004,33152.0,33151.0,0.00394714]
[1625722573977,2.52576474,33152.0,33151.0,0.00394714]
[1625722575410,3.74940814,33152.0,33151.0,0.00394714]
[1625722575855,2.52576474,33152.0,33151.0,0.00394714]
[1625722576161,3.74943856,33152.0,33151.0,0.00394714]
[1625722576307,2.52576474,33152.0,33151.0,0.00394714]
[1625722579759,2.58276474,33152.0,33151.0,0.00394714]
[1625722580057,3.80735124,33152.0,33151.0,0.00394714]
[1625722580209,5.20621916,33152.0,33151.0,0.00394714]
[1625722584339,6.78370473,33152.0,33151.0,0.00394714]
[1625722586892,6.78370473,33152.0,33147.0,0.00394624]
[1625722587042,8.53676757,33152.0,33147.0,0.00394624]
[1625722587191,6.48748525,33148.0,33147.0,0.00394624]
[1625722587343,6.54448525,33148.0,33147.0,0.00394624]
[1625722587942,7.02563613,33148.0,33147.0,0.00394624]
[1625722589143,11.04033613,33148.0,33147.0,0.00394624]
[1625722596652,11.04033613,33148.0,33143.0,0.00394774]
[1625722596805,4.91230753,33144.0,33143.0,0.00394774]
[1625722596955,5.20107753,33144.0,33143.0,0.00394774]
[1625722597106,5.25807753,33144.0,33143.0,0.00394774]
[1625722598004,5.49865297,33144.0,33143.0,0.00394774]
[1625722601534,7.07813136,33144.0,33143.0,0.00394774]
[1625722601831,5.49865297,33144.0,33143.0,0.00394774]
[1625722602434,5.49865297,33144.0,33143.0,4.83094774]
[1625722602586,5.20988297,33144.0,33143.0,0.00394774]
[1625722602886,5.46350297,33144.0,33143.0,0.00394774]
[1625722612122,5.20988297,33144.0,33143.0,0.00394774]
[1625722612875,5.56183297,33144.0,33143.0,0.00394774]
[1625722614977,5.56183297,33144.0,33143.0,0.09354774]
[1625722615126,5.20988297,33144.0,33143.0,0.00394774]
[1625722615277,5.15288297,33144.0,33143.0,0.00394774]
[1625722615727,3.74944171,33144.0,33143.0,0.00394774]
[1625722616027,2.52140868,33144.0,33143.0,0.01282693]
[1625722616326,2.52140868,33144.0,33143.0,4.50732693]
[1625722619027,2.76723868,33144.0,33143.0,4.50732693]
[1625722620529,2.28083324,33144.0,33143.0,4.50732693]
[1625722620684,1.22820844,33144.0,33143.0,4.52007115]
[1625722620830,0.61610512,33144.0,33143.0,5.93442194]
[1625722620977,0.70369299,33146.0,33143.0,5.93442194]
[1625722621129,0.70369299,33146.0,33144.0,0.0891]
[1625722621278,0.70369299,33146.0,33144.0,0.10192411]
[1625722621428,0.70376775,33147.0,33145.0,1.23752575]
[1625722621578,0.70359795,33146.0,33145.0,0.01282378]
[1625722621727,0.70359795,33146.0,33144.0,1.32661922]
[1625722621878,0.70359795,33146.0,33145.0,1.23751777]
[1625722622031,0.70359795,33146.0,33145.0,1.25034155]
[1625722622560,0.70359795,33146.0,33145.0,1.49091699]
[1625722622705,0.70359795,33146.0,33145.0,0.25339922]
[1625722622855,0.70359795,33146.0,33145.0,0.24452068]
[1625722623158,1.75856691,33146.0,33145.0,0.24452068]
[1625722623457,0.70359795,33146.0,33145.0,1.48213014]
[1625722623608,0.70359795,33146.0,33145.0,1.49100858]
[1625722624735,0.70359795,33146.0,33145.0,1.48213014]
[1625722625188,0.70359795,33146.0,33145.0,2.54301881]
[1625722625786,0.70359795,33146.0,33145.0,2.55189718]
[1625722626761,0.70359795,33146.0,33145.0,2.54301881]
[1625722626911,1.75938158,33146.0,33145.0,2.54301881]
[1625722627741,0.70359795,33146.0,33145.0,2.54301881]
[1625722627888,0.54619795,33146.0,33145.0,3.54301881]
[1625722628338,1.60167151,33146.0,33145.0,3.54301881]
[1625722628490,0.54619795,33146.0,33145.0,3.54301881]
[1625722628939,1.60185984,33146.0,33145.0,3.54301881]
[1625722629541,1.60185984,33146.0,33145.0,3.55301881]
[1625722629841,1.60185984,33146.0,33145.0,1.25452068]
[1625722631795,1.60185984,33146.0,33145.0,2.49296379]
[1625722632094,1.60185984,33146.0,33145.0,1.49296379]
[1625722632245,1.52865984,33146.0,33145.0,1.49296379]
[1625722632394,1.52865984,33146.0,33145.0,2.50571745]
[1625722632545,0.47299795,33146.0,33145.0,3.92126391]
[1625722632846,0.39999795,33146.0,33145.0,3.92126391]
[1625722634125,0.001,33147.0,33145.0,3.92126391]
[1625722634275,0.001,33147.0,33146.0,0.01275433]
[1625722634426,0.001,33147.0,33146.0,2.2554069]
[1625722634427,1.05589422,33147.0,33146.0,2.2554069]
[1625722634727,0.001,33147.0,33146.0,2.67106679]
[1625722635703,0.001,33147.0,33146.0,3.67106679]
[1625722636753,1.0550249,33149.0,33146.0,3.67106673]
[1625722636902,1.0550249,33149.0,33147.0,0.01275389]
[1625722637052,1.0550249,33149.0,33148.0,1.32792197]
[1625722637204,0.7100249,33149.0,33148.0,1.32792197]
[1625722637354,0.7100249,33149.0,33148.0,2.33186631]
[1625722637503,1.23332947,33152.0,33148.0,3.74731103]
[1625722637652,1.23332947,33152.0,33148.0,3.76006107]
[1625722637805,1.23332947,33152.0,33151.0,1.23848141]
[1625722637806,0.002,33152.0,33151.0,1.23848141]
[1625722637953,1.23371058,33152.0,33151.0,0.31895]
[1625722638102,1.23371058,33152.0,33151.0,1.32289407]
[1625722638252,0.002,33152.0,33151.0,2.56138907]
[1625722638554,1.23179348,33153.0,33152.0,0.0906]
[1625722638853,1.23179348,33153.0,33152.0,1.0906]
[1625722639002,1.23179348,33153.0,33152.0,1.09454392]
[1625722639152,1.23222861,33154.0,33152.0,2.33320778]
[1625722639528,1.23222861,33154.0,33153.0,0.00394387]
[1625722639830,1.20322861,33154.0,33153.0,0.00394387]
[1625722640131,2.32972586,33156.0,33153.0,1.00394387]
[1625722640281,2.32972586,33156.0,33155.0,3.9725]
[1625722640433,2.32972586,33156.0,33155.0,4.9725]
[1625722640582,0.9218,33156.0,33155.0,5.21307544]
[1625722640881,0.9218,33156.0,33155.0,5.21701918]
[1625722641858,1.4110637,33157.0,33155.0,4.21701918]
[1625722642009,1.1400637,33157.0,33156.0,0.0893]
[1625722642157,1.1400637,33157.0,33156.0,1.09324483]
[1625722642308,0.003,33157.0,33156.0,0.09324483]
[1625722642457,0.003,33157.0,33156.0,1.09324483]
[1625722642607,0.003,33157.0,33156.0,1.33382027]
[1625722644407,0.003,33157.0,33156.0,0.33382027]
[1625722644558,1.5879521,33162.0,33156.0,0.33382027]
[1625722644708,1.5879521,33162.0,33161.0,0.24057544]
[1625722644858,1.5879521,33162.0,33161.0,0.49358544]
[1625722645162,1.5879521,33162.0,33161.0,4.22273024]
[1625722645309,0.004,33162.0,33161.0,4.22273024]
[1625722647337,1.58321993,33163.0,33161.0,4.22273024]
[1625722647486,1.58473328,33164.0,33161.0,4.22273024]
[1625722647711,1.58473328,33164.0,33162.0,0.00394466]
[1625722648761,1.58473328,33164.0,33162.0,0.2445201]
[1625722649061,1.58473328,33164.0,33163.0,0.00394466]
[1625722650112,0.002,33164.0,33163.0,0.00394466]
[1625722650563,1.58377546,33164.0,33163.0,0.00394466]
[1625722651164,1.64077546,33164.0,33163.0,0.00394466]
[1625722656417,1.63877546,33164.0,33163.0,0.00394466]
[1625722656945,3.043714,33164.0,33163.0,0.00394466]
[1625722659871,4.27288612,33164.0,33163.0,0.00394466]
[1625722667384,5.32733645,33164.0,33163.0,0.00394466]
[1625722670541,5.3431146,33164.0,33162.0,0.00395085]
[1625722670841,5.3431146,33164.0,33161.0,3.7252]
[1625722670842,5.27546068,33163.0,33161.0,3.7252]
[1625722670992,5.33239076,33162.0,33161.0,3.7252]
[1625722671145,5.27539076,33162.0,33161.0,3.7252]
[1625722671292,5.27539076,33162.0,33161.0,4.21030174]
[1625722671745,5.27539076,33162.0,33161.0,0.48510174]
[1625722672042,5.27539076,33162.0,33161.0,0.00395086]
[1625722672205,5.33239076,33162.0,33161.0,0.00395086]
[1625722672342,9.82759076,33162.0,33161.0,0.00395086]
[1625722672943,11.58420131,33162.0,33160.0,0.00395083]
[1625722673243,7.5047928,33161.0,33159.0,0.001]
[1625722673394,7.07760512,33160.0,33159.0,0.001]
[1625722673692,7.07760512,33160.0,33159.0,0.00394742]
[1625722673693,7.09340061,33160.0,33159.0,0.00394742]
[1625722674068,7.09340061,33160.0,33156.0,0.00394742]
[1625722674218,7.09340061,33160.0,33159.0,0.0039474]
[1625722674372,7.09340061,33160.0,33159.0,0.0049474]
[1625722674519,7.07760512,33160.0,33159.0,0.001]
[1625722674819,7.09340023,33160.0,33159.0,0.00494726]
[1625722675120,7.07760512,33160.0,33159.0,0.001]